[Event "Titled Tuesday Blitz December 27 Late 2022"]
[White "Vaibhav Jayant Raut"]
[Black "Baskakov, Egor"]
[WhiteFideId "5089034"]
[BlackFideId "24197866"]
[WhiteElo "2237"]
[BlackElo "2215"]
[Result "1/2-1/2"]
[Round "08"]
[TimeControl "180+2"]
[Date "2022.12.27"]
[WhiteClock "0:00:03"]
[BlackClock "0:00:13"]

1. c4 {[%clk 0:03:00]}  Nf6 {[%clk 0:02:59]} 2. g3 {[%clk 0:03:00]}  e6 {[%clk 0:02:59]} 3. Bg2 {[%clk 0:03:00]}  d5 {[%clk 0:03:00]} 4. d4 {[%clk 0:03:01]}  Be7 {[%clk 0:03:00]} 5. Nf3 {[%clk 0:03:01]}  O-O {[%clk 0:03:01]} 6. O-O {[%clk 0:03:02]}  Ne4 {[%clk 0:03:01]} 7. Nbd2 {[%clk 0:03:00]}  f5 {[%clk 0:03:01]} 8. Nxe4 {[%clk 0:02:53]}  fxe4 {[%clk 0:03:02]} 9. Ne5 {[%clk 0:02:53]}  c6 {[%clk 0:03:03]} 10. f4 {[%clk 0:02:44]}  Nd7 {[%clk 0:02:54]} 11. Nxd7 {[%clk 0:02:43]}  Bxd7 {[%clk 0:02:55]} 12. e3 {[%clk 0:02:44]}  Bd6 {[%clk 0:02:52]} 13. c5 {[%clk 0:02:36]}  Bc7 {[%clk 0:02:52]} 14. Bd2 {[%clk 0:02:37]}  Qe7 {[%clk 0:02:51]} 15. b4 {[%clk 0:02:34]}  Kh8 {[%clk 0:02:50]} 16. h4 {[%clk 0:02:33]}  g6 {[%clk 0:02:43]} 17. Bc3 {[%clk 0:02:27]}  h6 {[%clk 0:02:41]} 18. Bxe4 {[%clk 0:02:21]}  dxe4 {[%clk 0:02:26]} 19. d5+ {[%clk 0:02:21]}  Kh7 {[%clk 0:02:26]} 20. d6 {[%clk 0:02:20]}  Bxd6 {[%clk 0:02:27]} 21. cxd6 {[%clk 0:02:19]}  Qf7 {[%clk 0:02:27]} 22. Qd4 {[%clk 0:02:17]}  c5 {[%clk 0:02:16]} 23. bxc5 {[%clk 0:02:14]}  Bc6 {[%clk 0:02:16]} 24. g4 {[%clk 0:02:04]}  Rad8 {[%clk 0:02:14]} 25. Rf2 {[%clk 0:02:01]}  Rd7 {[%clk 0:02:12]} 26. Raf1 {[%clk 0:02:00]}  Rg8 {[%clk 0:02:08]} 27. Kh2 {[%clk 0:01:56]}  Bb5 {[%clk 0:01:39]} 28. Qxe4 {[%clk 0:01:48]}  Bxf1 {[%clk 0:01:38]} 29. Rxf1 {[%clk 0:01:49]}  h5 {[%clk 0:01:32]} 30. gxh5 {[%clk 0:01:43]}  Qf5 {[%clk 0:01:32]} 31. hxg6+ {[%clk 0:01:39]}  Rxg6 {[%clk 0:01:32]} 32. Qxf5 {[%clk 0:01:35]}  exf5 {[%clk 0:01:33]} 33. Be5 {[%clk 0:01:26]}  Kh6 {[%clk 0:01:28]} 34. Rf3 {[%clk 0:01:14]}  Kh5 {[%clk 0:01:27]} 35. Rg3 {[%clk 0:01:14]}  Rg4 {[%clk 0:01:24]} 36. Kg2 {[%clk 0:00:58]}  Kxh4 {[%clk 0:01:19]} 37. Rxg4+ {[%clk 0:00:58]}  Kxg4 {[%clk 0:01:19]} 38. Kf2 {[%clk 0:00:58]}  Kh5 {[%clk 0:01:05]} 39. Kf3 {[%clk 0:00:54]}  Kg6 {[%clk 0:01:06]} 40. e4 {[%clk 0:00:54]}  fxe4+ {[%clk 0:00:42]} 41. Kxe4 {[%clk 0:00:55]}  Rh7 {[%clk 0:00:42]} 42. f5+ {[%clk 0:00:48]}  Kf7 {[%clk 0:00:42]} 43. Kd5 {[%clk 0:00:48]}  Rh1 {[%clk 0:00:38]} 44. f6 {[%clk 0:00:39]}  Rd1+ {[%clk 0:00:38]} 45. Bd4 {[%clk 0:00:39]}  Ke8 {[%clk 0:00:31]} 46. a4 {[%clk 0:00:30]}  Kd7 {[%clk 0:00:26]} 47. Ke5 {[%clk 0:00:24]}  Re1+ {[%clk 0:00:26]} 48. Kd5 {[%clk 0:00:22]}  Rd1 {[%clk 0:00:24]} 49. a5 {[%clk 0:00:22]}  a6 {[%clk 0:00:25]} 50. Ke4 {[%clk 0:00:15]}  Re1+ {[%clk 0:00:24]} 51. Kf5 {[%clk 0:00:15]}  Rf1+ {[%clk 0:00:24]} 52. Ke4 {[%clk 0:00:04]}  Ke6 {[%clk 0:00:19]} 53. Kd3 {[%clk 0:00:03]}  Rc1 {[%clk 0:00:14]} 54. Ke4 {[%clk 0:00:03]}  Re1+ {[%clk 0:00:13]} 55. Kd3 {[%clk 0:00:02]}  Rc1 {[%clk 0:00:14]} 56. Ke4 {[%clk 0:00:02]}  Re1+ {[%clk 0:00:13]} 57. Kd3 {[%clk 0:00:03]}  Rc1 {[%clk 0:00:13]} 1/2-1/2


[Site "https://www.chess.com"]

[Event "Titled Tuesday Blitz December 27 Late 2022"]
[White "Vasquez Schroeder, Rodrigo"]
[Black "Korchmar, Vasiliy"]
[WhiteFideId "3400042"]
[BlackFideId "24131750"]
[WhiteElo "2524"]
[BlackElo "2438"]
[Result "1-0"]
[Round "08"]
[TimeControl "180+2"]
[Date "2022.12.27"]
[WhiteClock "0:00:22"]
[BlackClock "0:00:02"]

1. e4 {[%clk 0:03:00]}  c5 {[%clk 0:03:00]} 2. Nf3 {[%clk 0:03:00]}  d6 {[%clk 0:03:00]} 3. d4 {[%clk 0:03:01]}  cxd4 {[%clk 0:03:01]} 4. Nxd4 {[%clk 0:03:01]}  Nf6 {[%clk 0:03:02]} 5. Nc3 {[%clk 0:03:02]}  Nc6 {[%clk 0:03:03]} 6. Bg5 {[%clk 0:03:02]}  Bd7 {[%clk 0:03:03]} 7. Qd2 {[%clk 0:03:01]}  a6 {[%clk 0:03:04]} 8. Bxf6 {[%clk 0:03:00]}  gxf6 {[%clk 0:03:03]} 9. f4 {[%clk 0:03:00]}  Rc8 {[%clk 0:02:33]} 10. Nb3 {[%clk 0:02:56]}  b5 {[%clk 0:02:29]} 11. a3 {[%clk 0:02:55]}  f5 {[%clk 0:02:25]} 12. Bd3 {[%clk 0:02:51]}  fxe4 {[%clk 0:02:22]} 13. Bxe4 {[%clk 0:02:51]}  Bg7 {[%clk 0:02:15]} 14. O-O {[%clk 0:02:49]}  O-O {[%clk 0:02:14]} 15. Kh1 {[%clk 0:02:48]}  Na5 {[%clk 0:02:01]} 16. Nxa5 {[%clk 0:02:34]}  Qxa5 {[%clk 0:02:02]} 17. Rf3 {[%clk 0:02:34]}  f5 {[%clk 0:01:55]} 18. Bd5+ {[%clk 0:02:27]}  e6 {[%clk 0:01:54]} 19. Bb3 {[%clk 0:02:27]}  d5 {[%clk 0:01:41]} 20. Rg3 {[%clk 0:02:19]}  Kh8 {[%clk 0:01:38]} 21. Rd1 {[%clk 0:02:18]}  Be8 {[%clk 0:01:32]} 22. Qe3 {[%clk 0:02:09]}  Bh5 {[%clk 0:01:27]} 23. Rd3 {[%clk 0:02:04]}  Qc7 {[%clk 0:01:26]} 24. Rg5 {[%clk 0:01:51]}  Bg6 {[%clk 0:01:22]} 25. Ne2 {[%clk 0:01:46]}  a5 {[%clk 0:01:03]} 26. c3 {[%clk 0:01:45]}  b4 {[%clk 0:01:01]} 27. axb4 {[%clk 0:01:42]}  axb4 {[%clk 0:01:01]} 28. Nd4 {[%clk 0:01:37]}  bxc3 {[%clk 0:00:49]} 29. bxc3 {[%clk 0:01:37]}  Rfe8 {[%clk 0:00:38]} 30. h4 {[%clk 0:01:09]}  e5 {[%clk 0:00:38]} 31. fxe5 {[%clk 0:01:01]}  Rxe5 {[%clk 0:00:39]} 32. Qf2 {[%clk 0:01:02]}  Rce8 {[%clk 0:00:38]} 33. Nf3 {[%clk 0:00:55]}  Re2 {[%clk 0:00:37]} 34. Qf1 {[%clk 0:00:52]}  f4 {[%clk 0:00:31]} 35. Rxg6 {[%clk 0:00:48]}  hxg6 {[%clk 0:00:32]} 36. Bxd5 {[%clk 0:00:47]}  Qe7 {[%clk 0:00:16]} 37. Kh2 {[%clk 0:00:41]}  Qf6 {[%clk 0:00:13]} 38. Bc4 {[%clk 0:00:35]}  Rb2 {[%clk 0:00:13]} 39. Qd1 {[%clk 0:00:30]}  Qf5 {[%clk 0:00:03]} 40. Rd5 {[%clk 0:00:21]}  Qg4 {[%clk 0:00:03]} 41. Bf1 {[%clk 0:00:21]}  Qg3+ {[%clk 0:00:02]} 42. Kh1 {[%clk 0:00:22]}  Bf6 {[%clk 0:00:01]} 43. Rd6 {[%clk 0:00:21]}  Kg7 {[%clk 0:00:01]} 44. Rxf6 {[%clk 0:00:21]}  Kxf6 {[%clk 0:00:01]} 45. Qd4+ {[%clk 0:00:22]}  Kf7 {[%clk 0:00:01]} 46. Ng5+ {[%clk 0:00:22]}  Kf8 {[%clk 0:00:01]} 47. Qf6+ {[%clk 0:00:21]}  Kg8 {[%clk 0:00:02]} 48. Qf7+ {[%clk 0:00:22]} 1-0


[Site "https://www.chess.com"]

[Event "Titled Tuesday Blitz December 27 Late 2022"]
[White "Vega Gutierrez, Sabrina"]
[Black "Arencibia Monduy, Antonio"]
[WhiteFideId "2219026"]
[BlackFideId "3507939"]
[WhiteElo "2377"]
[BlackElo "2122"]
[Result "0-1"]
[Round "08"]
[TimeControl "180+2"]
[Date "2022.12.27"]
[WhiteClock "0:00:01"]
[BlackClock "0:00:08"]

1. e4 {[%clk 0:03:00]}  c5 {[%clk 0:02:58]} 2. Nf3 {[%clk 0:03:01]}  d6 {[%clk 0:02:59]} 3. d4 {[%clk 0:03:01]}  cxd4 {[%clk 0:02:59]} 4. Qxd4 {[%clk 0:03:02]}  Nc6 {[%clk 0:02:59]} 5. Bb5 {[%clk 0:03:03]}  Bd7 {[%clk 0:02:59]} 6. Bxc6 {[%clk 0:03:03]}  Bxc6 {[%clk 0:03:00]} 7. Nc3 {[%clk 0:03:04]}  Nf6 {[%clk 0:02:59]} 8. Bg5 {[%clk 0:03:05]}  e6 {[%clk 0:02:58]} 9. O-O-O {[%clk 0:03:04]}  Be7 {[%clk 0:02:59]} 10. Qd3 {[%clk 0:03:04]}  Qa5 {[%clk 0:02:56]} 11. h4 {[%clk 0:03:04]}  O-O-O {[%clk 0:02:53]} 12. Nd4 {[%clk 0:03:01]}  h6 {[%clk 0:02:38]} 13. Bd2 {[%clk 0:02:29]}  Qb6 {[%clk 0:02:37]} 14. f3 {[%clk 0:02:26]}  d5 {[%clk 0:02:33]} 15. e5 {[%clk 0:02:24]}  Nd7 {[%clk 0:02:33]} 16. f4 {[%clk 0:02:25]}  Kb8 {[%clk 0:02:26]} 17. h5 {[%clk 0:02:09]}  Nc5 {[%clk 0:02:26]} 18. Qe2 {[%clk 0:01:44]}  Rc8 {[%clk 0:02:16]} 19. Be3 {[%clk 0:01:42]}  Qa5 {[%clk 0:02:13]} 20. Kb1 {[%clk 0:01:38]}  Na4 {[%clk 0:01:55]} 21. Nxa4 {[%clk 0:01:37]}  Bxa4 {[%clk 0:01:53]} 22. Rh3 {[%clk 0:01:32]}  Rhg8 {[%clk 0:01:41]} 23. Bc1 {[%clk 0:01:20]}  Bd7 {[%clk 0:01:34]} 24. g4 {[%clk 0:01:19]}  Rc4 {[%clk 0:01:21]} 25. a3 {[%clk 0:01:11]}  Rgc8 {[%clk 0:01:14]} 26. f5 {[%clk 0:00:39]}  Qb6 {[%clk 0:01:07]} 27. Rb3 {[%clk 0:00:25]}  Qa6 {[%clk 0:01:02]} 28. Rg3 {[%clk 0:00:06]}  Bf8 {[%clk 0:00:53]} 29. fxe6 {[%clk 0:00:05]}  fxe6 {[%clk 0:00:53]} 30. Rf3 {[%clk 0:00:06]}  Qb6 {[%clk 0:00:49]} 31. Rdf1 {[%clk 0:00:04]}  Qxd4 {[%clk 0:00:42]} 32. Rxf8 {[%clk 0:00:03]}  Qxg4 {[%clk 0:00:33]} 33. Rxc8+ {[%clk 0:00:03]}  Bxc8 {[%clk 0:00:34]} 34. Qf2 {[%clk 0:00:02]}  Qxh5 {[%clk 0:00:30]} 35. Rg1 {[%clk 0:00:02]}  Rc7 {[%clk 0:00:27]} 36. Qf8 {[%clk 0:00:02]}  Qf7 {[%clk 0:00:26]} 37. Qd8 {[%clk 0:00:01]}  Rd7 {[%clk 0:00:25]} 38. Qh8 {[%clk 0:00:01]}  b6 {[%clk 0:00:23]} 39. Ka1 {[%clk 0:00:01]}  Kb7 {[%clk 0:00:23]} 40. Be3 {[%clk 0:00:01]}  Rc7 {[%clk 0:00:23]} 41. c3 {[%clk 0:00:01]}  g5 {[%clk 0:00:19]} 42. Bd4 {[%clk 0:00:02]}  Qh7 {[%clk 0:00:18]} 43. Qf8 {[%clk 0:00:02]}  Bd7 {[%clk 0:00:14]} 44. Rh1 {[%clk 0:00:01]}  h5 {[%clk 0:00:14]} 45. Qf6 {[%clk 0:00:01]}  g4 {[%clk 0:00:14]} 46. Qg5 {[%clk 0:00:01]}  Be8 {[%clk 0:00:13]} 47. Rh4 {[%clk 0:00:01]}  Qg7 {[%clk 0:00:12]} 48. Qd8 {[%clk 0:00:01]}  Rc8 {[%clk 0:00:11]} 49. Qd6 {[%clk 0:00:01]}  Qf7 {[%clk 0:00:09]} 50. a4 {[%clk 0:00:01]}  Bxa4 {[%clk 0:00:08]} 0-1


[Site "https://www.chess.com"]

[Event "Titled Tuesday Blitz December 27 Late 2022"]
[White "Vifleemskaia, Svetlana"]
[Black "Moreno Perez, Tobias Sebastian"]
[WhiteFideId "4129490"]
[BlackFideId "186716"]
[WhiteElo "1971"]
[BlackElo "2256"]
[Result "1-0"]
[Round "08"]
[TimeControl "180+2"]
[Date "2022.12.27"]
[WhiteClock "0:01:08"]
[BlackClock "0:00:46"]

1. d4 {[%clk 0:03:00]}  d6 {[%clk 0:02:59]} 2. c4 {[%clk 0:03:00]}  Nf6 {[%clk 0:02:59]} 3. Nc3 {[%clk 0:03:00]}  Bf5 {[%clk 0:02:57]} 4. g3 {[%clk 0:02:58]}  g6 {[%clk 0:02:54]} 5. Bg2 {[%clk 0:02:58]}  c6 {[%clk 0:02:55]} 6. e4 {[%clk 0:02:58]}  Bg4 {[%clk 0:02:54]} 7. Nge2 {[%clk 0:02:57]}  Bg7 {[%clk 0:02:54]} 8. O-O {[%clk 0:02:57]}  O-O {[%clk 0:02:54]} 9. h3 {[%clk 0:02:57]}  Bxe2 {[%clk 0:02:54]} 10. Qxe2 {[%clk 0:02:56]}  c5 {[%clk 0:02:55]} 11. d5 {[%clk 0:02:56]}  Nfd7 {[%clk 0:02:53]} 12. Qc2 {[%clk 0:02:50]}  a6 {[%clk 0:02:51]} 13. a4 {[%clk 0:02:49]}  b5 {[%clk 0:02:44]} 14. axb5 {[%clk 0:02:47]}  Nb6 {[%clk 0:02:45]} 15. b3 {[%clk 0:02:40]}  axb5 {[%clk 0:02:33]} 16. Rxa8 {[%clk 0:02:38]}  Nxa8 {[%clk 0:02:34]} 17. Nxb5 {[%clk 0:02:37]}  Na6 {[%clk 0:02:35]} 18. Bd2 {[%clk 0:02:36]}  N8c7 {[%clk 0:02:34]} 19. Nxc7 {[%clk 0:02:31]}  Qxc7 {[%clk 0:02:35]} 20. Bc3 {[%clk 0:02:32]}  Nb4 {[%clk 0:02:34]} 21. Qb2 {[%clk 0:02:23]}  Bxc3 {[%clk 0:02:29]} 22. Qxc3 {[%clk 0:02:24]}  Ra8 {[%clk 0:02:29]} 23. f4 {[%clk 0:02:19]}  Ra2 {[%clk 0:02:28]} 24. e5 {[%clk 0:02:17]}  Rc2 {[%clk 0:02:24]} 25. Qe3 {[%clk 0:01:59]}  Qa7 {[%clk 0:02:23]} 26. f5 {[%clk 0:01:41]}  Qa2 {[%clk 0:02:08]} 27. Be4 {[%clk 0:01:38]}  Re2 {[%clk 0:02:07]} 28. Qf3 {[%clk 0:01:33]}  g5 {[%clk 0:01:38]} 29. f6 {[%clk 0:01:28]}  e6 {[%clk 0:01:07]} 30. dxe6 {[%clk 0:01:24]}  fxe6 {[%clk 0:01:08]} 31. f7+ {[%clk 0:01:23]}  Kf8 {[%clk 0:01:07]} 32. Qf6 {[%clk 0:01:17]}  Rxe4 {[%clk 0:00:48]} 33. Qh8+ {[%clk 0:01:09]}  Ke7 {[%clk 0:00:46]} 34. Qe8# {[%clk 0:01:08]} 1-0


[Site "https://www.chess.com"]

[Event "Titled Tuesday Blitz December 27 Late 2022"]
[White "Yuan, Qingyu"]
[Black "Kavutskiy, Konstantin"]
[WhiteFideId "8609772"]
[BlackFideId "2026384"]
[WhiteElo "2373"]
[BlackElo "2414"]
[Result "1-0"]
[Round "08"]
[TimeControl "180+2"]
[Date "2022.12.27"]
[WhiteClock "0:00:06"]
[BlackClock "0:00:16"]

1. e4 {[%clk 0:03:00]}  Nc6 {[%clk 0:02:59]} 2. Nf3 {[%clk 0:03:00]}  d6 {[%clk 0:02:59]} 3. d4 {[%clk 0:02:59]}  Nf6 {[%clk 0:02:58]} 4. d5 {[%clk 0:02:57]}  Nb8 {[%clk 0:02:58]} 5. Bd3 {[%clk 0:02:53]}  g6 {[%clk 0:02:57]} 6. h3 {[%clk 0:02:53]}  Bg7 {[%clk 0:02:57]} 7. c4 {[%clk 0:02:53]}  O-O {[%clk 0:02:56]} 8. O-O {[%clk 0:02:53]}  Nbd7 {[%clk 0:02:56]} 9. Nc3 {[%clk 0:02:50]}  c6 {[%clk 0:02:56]} 10. Be3 {[%clk 0:02:44]}  Qc7 {[%clk 0:02:56]} 11. Rc1 {[%clk 0:02:43]}  Re8 {[%clk 0:02:54]} 12. Qd2 {[%clk 0:02:41]}  a5 {[%clk 0:02:53]} 13. Rfd1 {[%clk 0:02:34]}  a4 {[%clk 0:02:41]} 14. Bc2 {[%clk 0:02:14]}  a3 {[%clk 0:02:37]} 15. b4 {[%clk 0:02:10]}  c5 {[%clk 0:02:33]} 16. Nb5 {[%clk 0:02:03]}  Qb8 {[%clk 0:02:32]} 17. bxc5 {[%clk 0:01:48]}  Nxc5 {[%clk 0:02:31]} 18. Bxc5 {[%clk 0:01:20]}  dxc5 {[%clk 0:02:32]} 19. e5 {[%clk 0:01:15]}  Nd7 {[%clk 0:02:32]} 20. d6 {[%clk 0:01:01]}  exd6 {[%clk 0:01:21]} 21. exd6 {[%clk 0:01:01]}  Nf6 {[%clk 0:01:13]} 22. Nc7 {[%clk 0:00:55]}  Bd7 {[%clk 0:01:13]} 23. Nxe8 {[%clk 0:00:46]}  Qxe8 {[%clk 0:01:14]} 24. Re1 {[%clk 0:00:46]}  Qd8 {[%clk 0:01:14]} 25. Ne5 {[%clk 0:00:38]}  Be6 {[%clk 0:01:13]} 26. Rb1 {[%clk 0:00:29]}  Nd7 {[%clk 0:01:09]} 27. Nxd7 {[%clk 0:00:23]}  Qxd7 {[%clk 0:01:10]} 28. Be4 {[%clk 0:00:20]}  Ra7 {[%clk 0:01:05]} 29. Rb6 {[%clk 0:00:19]}  Bd4 {[%clk 0:01:03]} 30. Bd5 {[%clk 0:00:20]}  Bxd5 {[%clk 0:00:54]} 31. cxd5 {[%clk 0:00:20]}  Ra8 {[%clk 0:00:55]} 32. Qf4 {[%clk 0:00:18]}  Re8 {[%clk 0:00:44]} 33. Rxe8+ {[%clk 0:00:18]}  Qxe8 {[%clk 0:00:45]} 34. g3 {[%clk 0:00:18]}  Qd7 {[%clk 0:00:35]} 35. Kg2 {[%clk 0:00:18]}  Kg7 {[%clk 0:00:35]} 36. Rb3 {[%clk 0:00:17]}  b5 {[%clk 0:00:34]} 37. Rxa3 {[%clk 0:00:17]}  b4 {[%clk 0:00:32]} 38. Ra6 {[%clk 0:00:16]}  h5 {[%clk 0:00:32]} 39. Rc6 {[%clk 0:00:16]}  Qd8 {[%clk 0:00:24]} 40. Rc7 {[%clk 0:00:16]}  Qe8 {[%clk 0:00:23]} 41. Re7 {[%clk 0:00:16]}  Qf8 {[%clk 0:00:22]} 42. h4 {[%clk 0:00:15]}  Bf6 {[%clk 0:00:21]} 43. Rc7 {[%clk 0:00:13]}  Bd4 {[%clk 0:00:20]} 44. d7 {[%clk 0:00:09]}  Qa8 {[%clk 0:00:19]} 45. Qd6 {[%clk 0:00:08]}  Bf6 {[%clk 0:00:17]} 46. Rc8 {[%clk 0:00:05]}  Qxa2 {[%clk 0:00:16]} 47. d8=Q {[%clk 0:00:05]}  Bxd8 {[%clk 0:00:16]} 48. Qxd8 {[%clk 0:00:06]} 1-0


[Site "https://www.chess.com"]

[Event "Titled Tuesday Blitz December 27 Late 2022"]
[White "Ai, Evan"]
[Black "Silva, Miguel Antonio Neto"]
[WhiteFideId "2094770"]
[BlackFideId "1911929"]
[WhiteElo "2055"]
[BlackElo "2204"]
[Result "1-0"]
[Round "09"]
[TimeControl "180+2"]
[Date "2022.12.27"]
[WhiteClock "0:00:21"]
[BlackClock "0:00:28"]

1. e4 {[%clk 0:02:43]}  e6 {[%clk 0:02:59]} 2. d4 {[%clk 0:02:42]}  d5 {[%clk 0:02:57]} 3. Nd2 {[%clk 0:02:42]}  c5 {[%clk 0:02:50]} 4. exd5 {[%clk 0:02:41]}  Qxd5 {[%clk 0:02:49]} 5. Ngf3 {[%clk 0:02:42]}  cxd4 {[%clk 0:02:48]} 6. Bc4 {[%clk 0:02:43]}  Qd7 {[%clk 0:02:47]} 7. O-O {[%clk 0:02:42]}  Nc6 {[%clk 0:02:47]} 8. Nb3 {[%clk 0:02:40]}  Nf6 {[%clk 0:02:46]} 9. Nbxd4 {[%clk 0:02:39]}  Nxd4 {[%clk 0:02:43]} 10. Nxd4 {[%clk 0:02:40]}  a6 {[%clk 0:02:43]} 11. a4 {[%clk 0:02:40]}  Be7 {[%clk 0:02:34]} 12. b3 {[%clk 0:02:35]}  O-O {[%clk 0:02:30]} 13. Bb2 {[%clk 0:02:32]}  Qc7 {[%clk 0:02:21]} 14. Qe2 {[%clk 0:02:16]}  Bd7 {[%clk 0:02:21]} 15. Nf3 {[%clk 0:02:09]}  b5 {[%clk 0:02:08]} 16. axb5 {[%clk 0:02:10]}  axb5 {[%clk 0:02:08]} 17. Bd3 {[%clk 0:02:06]}  Bc6 {[%clk 0:01:52]} 18. Ne5 {[%clk 0:02:05]}  Rxa1 {[%clk 0:01:38]} 19. Rxa1 {[%clk 0:02:06]}  Ra8 {[%clk 0:01:38]} 20. Rxa8+ {[%clk 0:02:02]}  Bxa8 {[%clk 0:01:37]} 21. Bxb5 {[%clk 0:02:03]}  Bd6 {[%clk 0:01:33]} 22. Bc4 {[%clk 0:02:00]}  Nd5 {[%clk 0:01:26]} 23. Nd3 {[%clk 0:01:49]}  Bxh2+ {[%clk 0:01:23]} 24. Kf1 {[%clk 0:01:42]}  Bd6 {[%clk 0:01:22]} 25. Qg4 {[%clk 0:01:32]}  Bf8 {[%clk 0:01:22]} 26. Ne5 {[%clk 0:01:15]}  Nf6 {[%clk 0:01:17]} 27. Qh3 {[%clk 0:01:06]}  Bd6 {[%clk 0:01:13]} 28. Nxf7 {[%clk 0:00:56]}  Kxf7 {[%clk 0:01:03]} 29. Qxe6+ {[%clk 0:00:55]}  Kf8 {[%clk 0:01:03]} 30. Bxf6 {[%clk 0:00:54]}  gxf6 {[%clk 0:01:03]} 31. Qg8+ {[%clk 0:00:53]}  Ke7 {[%clk 0:01:02]} 32. Qxa8 {[%clk 0:00:51]}  Bc5 {[%clk 0:01:01]} 33. Qe4+ {[%clk 0:00:49]}  Kd8 {[%clk 0:00:58]} 34. Qd5+ {[%clk 0:00:44]}  Kc8 {[%clk 0:00:42]} 35. Bd3 {[%clk 0:00:33]}  Kb8 {[%clk 0:00:40]} 36. Qg8+ {[%clk 0:00:29]}  Ka7 {[%clk 0:00:40]} 37. Qxh7 {[%clk 0:00:29]}  Be7 {[%clk 0:00:38]} 38. Qe4 {[%clk 0:00:25]}  Bc5 {[%clk 0:00:35]} 39. Qa4+ {[%clk 0:00:25]}  Kb8 {[%clk 0:00:34]} 40. Be4 {[%clk 0:00:21]}  Qe5 {[%clk 0:00:33]} 41. Qa8+ {[%clk 0:00:18]}  Kc7 {[%clk 0:00:33]} 42. Qc6+ {[%clk 0:00:18]}  Kd8 {[%clk 0:00:32]} 43. Qd5+ {[%clk 0:00:18]}  Qxd5 {[%clk 0:00:28]} 44. Bxd5 {[%clk 0:00:19]}  Ke7 {[%clk 0:00:28]} 45. f3 {[%clk 0:00:19]}  Kd6 {[%clk 0:00:29]} 46. Be4 {[%clk 0:00:20]}  Ke5 {[%clk 0:00:30]} 47. Ke2 {[%clk 0:00:20]}  f5 {[%clk 0:00:30]} 48. Bd3 {[%clk 0:00:21]}  Kf4 {[%clk 0:00:30]} 49. c3 {[%clk 0:00:20]}  Ke5 {[%clk 0:00:29]} 50. b4 {[%clk 0:00:20]}  Bb6 {[%clk 0:00:30]} 51. Bc2 {[%clk 0:00:19]}  f4 {[%clk 0:00:30]} 52. Kd3 {[%clk 0:00:19]}  Bf2 {[%clk 0:00:29]} 53. c4 {[%clk 0:00:20]}  Kd6 {[%clk 0:00:29]} 54. Ke4 {[%clk 0:00:20]}  Be1 {[%clk 0:00:29]} 55. Kxf4 {[%clk 0:00:19]}  Bxb4 {[%clk 0:00:29]} 56. Ke4 {[%clk 0:00:19]}  Bd2 {[%clk 0:00:28]} 57. Bd3 {[%clk 0:00:20]}  Kc5 {[%clk 0:00:28]} 58. f4 {[%clk 0:00:20]}  Bc3 {[%clk 0:00:27]} 59. g4 {[%clk 0:00:21]}  Bf6 {[%clk 0:00:28]} 60. g5 {[%clk 0:00:21]} 1-0


[Site "https://www.chess.com"]

[Event "Titled Tuesday Blitz December 27 Late 2022"]
[White "Arnold, Ken"]
[Black "Sanchez, Robert"]
[WhiteFideId "2056836"]
[BlackFideId "2034360"]
[WhiteElo "2355"]
[BlackElo "1966"]
[Result "0-1"]
[Round "09"]
[TimeControl "180+2"]
[Date "2022.12.27"]
[WhiteClock "0:00:22"]
[BlackClock "0:00:21"]

1. d4 {[%clk 0:03:00]}  Nf6 {[%clk 0:02:57]} 2. c4 {[%clk 0:03:01]}  e6 {[%clk 0:02:57]} 3. Nf3 {[%clk 0:03:01]}  Bb4+ {[%clk 0:02:57]} 4. Nbd2 {[%clk 0:03:00]}  b6 {[%clk 0:02:57]} 5. e3 {[%clk 0:03:01]}  O-O {[%clk 0:02:57]} 6. Bd3 {[%clk 0:03:01]}  Be7 {[%clk 0:02:57]} 7. O-O {[%clk 0:03:01]}  Bb7 {[%clk 0:02:58]} 8. Re1 {[%clk 0:03:01]}  d5 {[%clk 0:02:58]} 9. cxd5 {[%clk 0:03:00]}  exd5 {[%clk 0:02:58]} 10. Qc2 {[%clk 0:03:00]}  c5 {[%clk 0:02:56]} 11. b3 {[%clk 0:02:55]}  Nc6 {[%clk 0:02:55]} 12. a3 {[%clk 0:02:54]}  Rc8 {[%clk 0:02:55]} 13. Bf5 {[%clk 0:02:53]}  Rc7 {[%clk 0:02:54]} 14. Qa2 {[%clk 0:02:50]}  cxd4 {[%clk 0:02:44]} 15. exd4 {[%clk 0:02:50]}  Bd6 {[%clk 0:02:33]} 16. Nf1 {[%clk 0:02:47]}  Ne4 {[%clk 0:02:18]} 17. Be3 {[%clk 0:02:33]}  g6 {[%clk 0:02:11]} 18. Bh3 {[%clk 0:02:24]}  f5 {[%clk 0:02:06]} 19. Bh6 {[%clk 0:02:18]}  Rff7 {[%clk 0:01:59]} 20. b4 {[%clk 0:02:15]}  Qf6 {[%clk 0:01:48]} 21. Ng3 {[%clk 0:02:11]}  Nxd4 {[%clk 0:01:33]} 22. Nxd4 {[%clk 0:02:07]}  Qxd4 {[%clk 0:01:30]} 23. Rad1 {[%clk 0:01:51]}  Qf6 {[%clk 0:01:23]} 24. f3 {[%clk 0:01:33]}  Nc3 {[%clk 0:01:19]} 25. Re8+ {[%clk 0:01:14]}  Bf8 {[%clk 0:01:18]} 26. Qd2 {[%clk 0:00:43]}  Nxd1 {[%clk 0:01:15]} 27. Qxd1 {[%clk 0:00:42]}  Rce7 {[%clk 0:00:53]} 28. Rb8 {[%clk 0:00:31]}  Qd6 {[%clk 0:00:40]} 29. Rxf8+ {[%clk 0:00:29]}  Rxf8 {[%clk 0:00:40]} 30. Bxf8 {[%clk 0:00:30]}  Kxf8 {[%clk 0:00:39]} 31. Qd2 {[%clk 0:00:27]}  Qe5 {[%clk 0:00:33]} 32. Nf1 {[%clk 0:00:25]}  Ba6 {[%clk 0:00:28]} 33. Qh6+ {[%clk 0:00:22]}  Qg7 {[%clk 0:00:22]} 34. Qf4 {[%clk 0:00:22]}  Bxf1 {[%clk 0:00:22]} 35. Kxf1 {[%clk 0:00:22]}  Qa1+ {[%clk 0:00:21]} 36. Kf2 {[%clk 0:00:22]}  Qb2+ {[%clk 0:00:20]} 37. Kg3 {[%clk 0:00:22]}  Qe5 {[%clk 0:00:21]} 0-1


[Site "https://www.chess.com"]

[Event "Titled Tuesday Blitz December 27 Late 2022"]
[White "Bach, Matthias"]
[Black "Adewumi, Tanitoluwa"]
[WhiteFideId "4603168"]
[BlackFideId "30966396"]
[WhiteElo "2214"]
[BlackElo "2283"]
[Result "0-1"]
[Round "09"]
[TimeControl "180+2"]
[Date "2022.12.27"]
[WhiteClock "0:00:58"]
[BlackClock "0:00:04"]

1. d4 {[%clk 0:02:53]}  Nf6 {[%clk 0:02:58]} 2. c4 {[%clk 0:02:52]}  e6 {[%clk 0:02:58]} 3. Nc3 {[%clk 0:02:52]}  Bb4 {[%clk 0:02:58]} 4. Bg5 {[%clk 0:02:52]}  c5 {[%clk 0:02:53]} 5. d5 {[%clk 0:02:51]}  O-O {[%clk 0:02:50]} 6. e3 {[%clk 0:02:49]}  d6 {[%clk 0:02:45]} 7. Bd3 {[%clk 0:02:48]}  e5 {[%clk 0:02:42]} 8. Nf3 {[%clk 0:02:44]}  h6 {[%clk 0:02:35]} 9. Bxf6 {[%clk 0:02:39]}  Qxf6 {[%clk 0:02:35]} 10. O-O {[%clk 0:02:40]}  Qe7 {[%clk 0:02:23]} 11. Nd2 {[%clk 0:02:32]}  f5 {[%clk 0:02:20]} 12. e4 {[%clk 0:02:30]}  f4 {[%clk 0:02:13]} 13. Be2 {[%clk 0:02:30]}  Nd7 {[%clk 0:02:06]} 14. Bg4 {[%clk 0:02:29]}  Bxc3 {[%clk 0:02:04]} 15. bxc3 {[%clk 0:02:28]}  Nf6 {[%clk 0:02:04]} 16. Bxc8 {[%clk 0:02:26]}  Raxc8 {[%clk 0:02:04]} 17. f3 {[%clk 0:02:25]}  Nh7 {[%clk 0:01:41]} 18. a4 {[%clk 0:02:21]}  Rf6 {[%clk 0:01:33]} 19. a5 {[%clk 0:02:20]}  Rg6 {[%clk 0:01:33]} 20. Kh1 {[%clk 0:02:19]}  Qh4 {[%clk 0:01:29]} 21. Qe1 {[%clk 0:02:16]}  Qh5 {[%clk 0:01:27]} 22. Qf2 {[%clk 0:02:10]}  Rf8 {[%clk 0:01:19]} 23. Rab1 {[%clk 0:02:07]}  Rf7 {[%clk 0:01:13]} 24. Rb2 {[%clk 0:02:06]}  Rg3 {[%clk 0:00:10]} 25. Rfb1 {[%clk 0:02:01]}  Ng5 {[%clk 0:00:10]} 26. Rxb7 {[%clk 0:01:53]}  Rxb7 {[%clk 0:00:10]} 27. Rxb7 {[%clk 0:01:52]}  Kh7 {[%clk 0:00:10]} 28. Rxa7 {[%clk 0:01:50]}  Qh4 {[%clk 0:00:09]} 29. Nf1 {[%clk 0:01:33]}  Rxf3 {[%clk 0:00:05]} 30. Qg1 {[%clk 0:01:23]}  Rxc3 {[%clk 0:00:05]} 31. Rd7 {[%clk 0:01:10]}  Nxe4 {[%clk 0:00:05]} 32. a6 {[%clk 0:00:58]}  Nf2+ {[%clk 0:00:04]} 0-1


[Site "https://www.chess.com"]